fUSD/lending_fUSD_20260122
["ID","MTS","AMOUNT","RATE_DAILY","PERIOD"]
[403021464,1769074242643,-500.0,0.00019178,2]
[403021465,1769074242652,-500.0,0.00019178,2]
[403021466,1769074242662,-500.0,0.00019178,2]
[403021467,1769074242671,-500.0,0.00019178,2]
[403021469,1769074242681,-500.0,0.00019178,2]
[403021470,1769074242690,-500.0,0.00019178,2]
[403021471,1769074242700,-500.0,0.00019178,2]
[403021472,1769074242710,-150.0,0.00019178,2]
[403021473,1769074242719,-150.33,0.00019178,30]
[403021475,1769074242728,-155.962319,0.00019178,2]
[403021476,1769074242742,-573.952439,0.00019178,2]
[403021477,1769074242752,-573.952439,0.00019178,2]
[403021478,1769074242761,-573.952439,0.00019178,2]
[403021479,1769074242770,-573.952439,0.00019178,2]
[403021480,1769074242781,-573.952439,0.00019178,2]
[403021481,1769074242790,-573.952439,0.00019178,2]
[403021482,1769074242799,-573.952439,0.00019178,2]
[403021502,1769074243025,-573.952439,0.00019178,2]
[403021503,1769074243035,-573.952439,0.00019178,2]
[403021504,1769074243045,-573.952439,0.00019178,2]
[403021505,1769074243055,-573.952439,0.00019178,2]
[403021506,1769074243064,-573.952439,0.00019178,2]
[403021507,1769074243075,-573.952439,0.00019178,2]
[403021508,1769074243084,-573.952439,0.00019178,2]
[403021509,1769074243094,-573.952439,0.00019178,2]
[403021510,1769074243103,-573.952439,0.00019178,2]
[403021511,1769074243112,-573.952439,0.00019178,2]
[403021512,1769074243122,-573.952439,0.00019178,2]
[403021513,1769074243131,-573.952439,0.00019178,2]
[403021514,1769074243140,-573.952435,0.00019178,2]
[403021515,1769074243150,-168.0,0.00019179,2]
[403021516,1769074243159,-151.3,0.00019224,2]
[403021517,1769074243168,-166.66,0.00019231,2]
[403021518,1769074243178,-7151.9065487,0.00019234,2]
[403021519,1769074243187,-1734.5975568,0.00019234,2]
[403021520,1769074243196,-6170.9963071,0.00019234,2]
[403021521,1769074243206,-8027.3957572,0.00019234,2]
[403021522,1769074243215,-846.21,0.00019412,2]
[403021523,1769074243225,-155.84,0.00019414,2]
[403021524,1769074243234,-5499.2718,0.00019474,2]
[403021525,1769074243244,-155.0,0.0001956,2]
[403021526,1769074243253,-155.0,0.00019562,2]
[403021527,1769074243263,-506.0,0.000196,2]
[403021528,1769074243272,-3468.9,0.00019613,2]
[403021529,1769074243282,-587.0,0.00019685,2]
[403021530,1769074243291,-396.0,0.00019685,2]
[403021531,1769074243301,-239.7311283,0.00019717,2]
[403021532,1769074243311,-166.66,0.00019809,2]
[403021533,1769074243320,-1000.0,0.00019847,2]
[403021534,1769074243329,-2351.0,0.00019882,2]
[403021535,1769074243339,-233.57,0.00019936,2]
[403021536,1769074243348,-151.3,0.0001994,2]
[403021537,1769074243358,-154664.23203825,0.0001995,15]
[403021538,1769074243367,-7644.78825108,0.0001995,15]
[403021539,1769074243376,-151.3,0.0001999,2]
[403021540,1769074243385,-1532.52523808,0.0002,2]
[403021541,1769074243395,-25582.11960735,0.0002,2]
[403021542,1769074243404,-1885.87,0.0002,2]
[403021543,1769074243413,-500.0,0.0002,2]
[403021544,1769074243423,-7498.26534942,0.0002,2]
[403021545,1769074243434,-150.0,0.0002,2]
[403021546,1769074243444,-238.3048284,0.0002,2]
[403021547,1769074243455,-500.0,0.00020001,2]
[403021548,1769074243466,-500.0,0.00020002,2]
[403021549,1769074243476,-499.9999,0.00020003,2]
[403021550,1769074243487,-155.84,0.00020339,2]
[403021551,1769074243497,-166.66,0.00020386,2]
[403021552,1769074243508,-7734.07629798,0.00020458,2]
[403021553,1769074243517,-217.50629889,0.000205,7]
[403021555,1769074243527,-150.0,0.000205,7]
[403021557,1769074243536,-154.15,0.00020548,2]
[403021558,1769074243545,-176.505647,0.00020548,2]
[403021559,1769074243554,-176.505647,0.00020548,2]
[403021560,1769074243563,-176.505647,0.00020548,2]
[403021561,1769074243572,-176.505647,0.00020548,2]
[403021563,1769074243581,-176.505647,0.00020548,2]
[403021564,1769074243590,-176.505647,0.00020548,2]
[403021566,1769074243599,-176.505647,0.00020548,2]
[403021568,1769074243608,-176.505647,0.00020548,2]
[403021569,1769074243618,-176.505647,0.00020548,2]
[403021570,1769074243627,-176.505647,0.00020548,2]
[403021571,1769074243638,-176.505647,0.00020548,2]
[403021572,1769074243648,-176.505647,0.00020548,2]
[403021573,1769074243657,-176.505647,0.00020548,2]
[403021574,1769074243667,-176.505647,0.00020548,2]
[403021575,1769074243679,-176.505647,0.00020548,2]
[403021576,1769074243688,-176.505647,0.00020548,2]
[403021577,1769074243698,-176.505647,0.00020548,2]
[403021578,1769074243707,-176.505647,0.00020548,2]
[403021579,1769074243715,-176.505647,0.00020548,2]
[403021580,1769074243726,-176.505653,0.00020548,2]
[403021581,1769074243737,-559.98,0.00020611,2]
[403021582,1769074243748,-762.09,0.00020741,2]
[403021583,1769074243758,-559.98,0.00020885,2]
[403021584,1769074243767,-1837.65,0.00020951,2]
[403021585,1769074243779,-1247.68,0.00020951,2]
[403021586,1769074243788,-762.09,0.00021014,2]
[403021587,1769074243797,-559.98,0.00021159,2]
[403021588,1769074243807,-169.7,0.00021165,2]
[403021589,1769074243817,-155.84,0.00021263,2]
[403021590,1769074243826,-762.09,0.00021288,2]
[403021591,1769074243835,-155.0,0.00021338,2]
[403021592,1769074243845,-155.0,0.00021341,2]
[403021593,1769074243855,-846.21,0.00021353,2]
[403021594,1769074243864,-330.42,0.0002143,2]
[403021595,1769074243876,-559.98,0.00021433,2]
[403021596,1769074243886,-307.12,0.00021433,2]
[403021597,1769074243895,-823.0,0.00021512,2]
[403021598,1769074243904,-3468.9,0.0002174,2]
[403021599,1769074243913,-1000.0,0.00021832,2]
[403021600,1769074243922,-3292.0,0.00021836,2]
[403021601,1769074243931,-5000.0,0.00021918,2]
[403021602,1769074243940,-151.0,0.00021918,2]
[403021603,1769074243949,-154.0,0.00021918,2]
[403021604,1769074243959,-154.0,0.00021918,2]
[403021605,1769074243969,-154.0,0.00021918,2]
[403021606,1769074243980,-154.0,0.00021918,2]
[403021607,1769074243990,-154.0,0.00021918,2]
[403021608,1769074244000,-154.0,0.00021918,2]
[403021609,1769074244010,-154.0,0.00021918,2]
[403021610,1769074244019,-154.0,0.00021918,2]
[403021611,1769074244028,-154.0,0.00021918,2]
[403021612,1769074244038,-154.0,0.00021918,2]
[403021613,1769074244047,-154.0,0.00021918,2]
[403021614,1769074244056,-500.0,0.00021918,2]
[403021615,1769074244066,-249.98949767,0.00021918,2]
[403021616,1769074244075,-500.0,0.00021973,2]
[403021617,1769074244085,-233.57,0.00021987,2]
[403021618,1769074244094,-163.53,0.00022,2]
[403021619,1769074244103,-160.0,0.00022,2]
[403021620,1769074244116,-500.0,0.00022,14]
[403021621,1769074244126,-145344.47,0.00022,2]
[403021622,1769074244136,-500.0,0.00022028,2]
[403021623,1769074244145,-500.0,0.00022082,2]
[403021624,1769074244154,-494.3716957,0.000221,2]
[403021625,1769074244164,-240.22289408,0.0002211,2]
[403021626,1769074244173,-351.57471192,0.00022116,2]
[403021627,1769074244183,-548.00364651,0.00022137,2]
[403021628,1769074244193,-155.84,0.00022188,2]
[403021629,1769074244203,-7734.07629798,0.00022444,2]
[403021630,1769074244212,-6312.6753555,0.00022444,2]
[403021631,1769074244222,-35488.81033828,0.000225,2]
[403021632,1769074244231,-497.61922107,0.00022519,2]
[403021633,1769074244241,-255.44823583,0.000226,2]
[403021634,1769074244252,-661.43,0.00022707,2]
[403021635,1769074244264,-523.13162182,0.0002271,2]
[403021636,1769074244273,-358.35125153,0.00022858,2]
[403021638,1769074245676,-1.7e-07,0.00016585,2]
[403021639,1769074247005,-249.99999983,0.00016585,2]
[403021640,1769074247014,-250.0,0.00016585,2]
[403021641,1769074247024,-250.0,0.00016585,2]
[403021642,1769074247034,-250.0,0.00016585,2]
[403021643,1769074247043,-250.0,0.00016585,2]
[403021644,1769074247053,-250.0,0.00016585,2]
[403021645,1769074247062,-250.0,0.00016585,2]
[403021646,1769074247071,-250.0,0.00016585,2]
[403021647,1769074247081,-201.000005,0.00016585,2]
[403021648,1769074247094,-151.0,0.00016787,2]
[403021649,1769074247104,-500.0,0.0002,2]
[403021650,1769074247114,-742.64874847,0.00022858,2]
[403021651,1769074247124,-59166.37883938,0.00023,2]
[403021652,1769074247164,-3872.28484509,0.00023,2]
[403021672,1769074417725,1178.7183794,0.00016052,2]
[403021673,1769074417744,321.2816206,0.00016052,2]
[403022046,1769075438176,-587.0,0.00016573,2]
[403022047,1769075438187,-300.0,0.00016573,2]
[403022048,1769075438197,-891.2954555,0.00016573,2]
[403022049,1769075438226,-308.7045445,0.00016573,2]
[403022050,1769075438236,-250.0,0.00016573,2]
[403022051,1769075438245,-207.85054472,0.00016574,2]
[403022229,1769075858113,2800.37,0.0001396,2]
[403022284,1769075963154,1198.21,0.000226,120]
[403022313,1769076608224,-1000.0,0.00016366,2]
[403022314,1769076608244,-2575.82,0.00016389,2]
[403022315,1769076608264,-150.0,0.00016445,2]
[403022316,1769076608286,-250.0,0.00016446,2]
[403022317,1769076608308,-600.0,0.00016446,2]
[403022318,1769076608329,-300.0,0.00016448,2]
[403022319,1769076608349,-324.24,0.00016452,2]
[403022320,1769076608719,-687.7010816,0.00016469,2]
[403022321,1769076608741,-300.0,0.00016499,2]
[403022322,1769076608763,-263.72550752,0.00016502,2]
[403022323,1769076608784,-1200.0,0.00016699,2]
[403022324,1769076608805,-1094.13674262,0.000167,2]
[403022325,1769076608836,-507.73,0.00016748,2]
[403022326,1769076608861,-166.66,0.00016785,2]
[403022327,1769076608895,-166.66,0.00016905,2]
[403022328,1769076608917,-151.0,0.00016908,2]
[403022329,1769076608939,-262.32666826,0.00017058,2]
[403022330,1769076611784,-37.67333174,0.00017058,2]
[403022331,1769076611806,-300.0,0.00017059,2]
[403022332,1769076611827,-939.0,0.0001706,2]
[403022333,1769076611847,-1500.0,0.00017094,2]
[403022334,1769076611868,-1810.0,0.00017122,2]
[403022335,1769076611888,-1265.0,0.00017128,2]
[403022336,1769076611909,-885.0,0.00017156,2]
[403022337,1769076611931,-1584.0,0.00017191,2]
[403022338,1769076611951,-1001.0,0.00017196,2]
[403022339,1769076611971,-395.0,0.00017225,2]
[403022340,1769076611994,-283.32666826,0.00017231,2]
[403022341,1769076631082,-151.0,0.00017062,2]
[403022342,1769076631103,-755.67333174,0.00017231,2]
[403022343,1769076631123,-734.0,0.00017259,2]
[403022344,1769076631142,-295.0,0.00017259,2]
[403022345,1769076631162,-166.66,0.00017261,2]
[403022346,1769076631182,-525.0,0.00017265,2]
[403022347,1769076631201,-151.0,0.00017296,2]
[403022348,1769076631221,-399.0,0.00017299,2]
[403022349,1769076631241,-1580.0,0.00017334,2]
[403022350,1769076631261,-166.66,0.00017339,2]
[403022351,1769076631282,-500.0,0.00017506,2]
[403022352,1769076631302,-175.00666826,0.00017506,2]
[403022369,1769076632604,-151.0,0.00017293,2]
[403022370,1769076632614,-117.14278702,0.00017506,2]
[403022371,1769076632623,-151.0,0.00017506,2]
[403022372,1769076632632,-151.0,0.00017506,2]
[403022373,1769076632641,-151.0,0.00017506,2]
[403022374,1769076632650,-7.91379926,0.00017506,2]
[403022375,1769076632661,-143.08620074,0.00017506,2]
[403022376,1769076632670,-1584.3182002,0.00017509,2]
[403022377,1769076632681,-1007.91535398,0.00017509,2]
[403022378,1769076632692,-1171.15387376,0.00017509,2]
[403022379,1769076632703,-837.55599896,0.00017509,2]
[403022380,1769076632718,-544.02,0.00017509,2]
[403022381,1769076632740,-437.436765,0.00017509,2]
[403022382,1769076632751,-3007.1599678,0.00017509,2]
[403022383,1769076632761,-559.2491887,0.00017509,2]
[403022384,1769076632772,-430.57999999,0.00017509,2]
[403022385,1769076632783,-1199.16049217,0.00017509,2]
[403022386,1769076632794,-2256.44017765,0.00017509,2]
[403022392,1769076638355,-2301.30594,0.00017509,2]
[403022393,1769076638561,-1020.29583807,0.00017509,2]
[403022394,1769076638573,-659.13780372,0.00017509,2]
[403022395,1769076638583,-743.0598,0.00017509,2]
[403022396,1769076638594,-8540.23891023,0.00017517,2]
[403022397,1769076638605,-344.51749869,0.00017517,2]
[403022398,1769076638616,-337.37125854,0.00017517,2]
[403022399,1769076638625,-150.0,0.00017584,2]
[403022400,1769076638636,-232.51,0.00017594,2]
[403022401,1769076638647,-229.78,0.00017599,3]
[403022402,1769076638658,-163.29,0.000176,3]
[403022403,1769076638668,-500.0,0.00017608,2]
[403022404,1769076638678,-154.05382052,0.00017608,2]
[403022405,1769076638689,-155.0,0.00017608,2]
[403022406,1769076638699,-405.2160457,0.00017608,2]
[403022407,1769076638712,-500.9739543,0.00017608,2]
[403022408,1769076638723,-310.11107647,0.00017608,2]
[403022409,1769076638748,-305.96311241,0.00017608,2]
[403022410,1769076638770,-1580.96751874,0.00017608,2]
[403022411,1769076638780,-217.98,0.00017608,2]
[403022412,1769076638790,-500.0,0.00017608,2]
[403022413,1769076638801,-500.0,0.00017608,2]
[403022414,1769076638811,-516.50754003,0.00017608,2]
[403022415,1769076638820,-500.0,0.00017608,2]
[403022416,1769076638830,-150.0,0.00017608,2]
[403022417,1769076638841,-212.94259767,0.00017608,2]
[403022419,1769076638851,-500.0,0.00017608,2]
[403022420,1769076638862,-500.0,0.00017608,2]
[403022422,1769076638871,-500.0,0.00017608,2]
[403022424,1769076638883,-500.0,0.00017608,2]
[403022425,1769076638892,-500.0,0.00017608,2]
[403022427,1769076638903,-500.0,0.00017608,2]
[403022429,1769076638913,-500.0,0.00017608,2]
[403022431,1769076638923,-500.0,0.00017608,2]
[403022432,1769076638933,-500.0,0.00017608,2]
[403022434,1769076638944,-500.0,0.00017608,2]
[403022436,1769076638955,-500.0,0.00017608,2]
[403022437,1769076638966,-500.0,0.00017608,2]
[403022439,1769076638978,-261.36905318,0.00017608,2]
[403022440,1769076638988,-500.0,0.00017608,2]
[403022441,1769076638998,-500.0,0.00017608,2]
[403022442,1769076639009,-500.0,0.00017608,2]
[403022443,1769076639019,-500.0,0.00017608,2]
[403022444,1769076639030,-500.0,0.00017608,2]
[403022445,1769076639041,-500.0,0.00017608,2]
[403022446,1769076639051,-500.0,0.00017608,2]
[403022447,1769076639062,-500.0,0.00017608,2]
[403022448,1769076639072,-500.0,0.00017608,2]
[403022449,1769076639082,-500.0,0.00017608,2]
[403022450,1769076639092,-500.0,0.00017608,2]
[403022451,1769076639102,-500.0,0.00017608,2]
[403022452,1769076639112,-500.0,0.00017608,2]
[403022453,1769076639122,-500.0,0.00017608,2]
[403022454,1769076639132,-500.0,0.00017608,2]
[403022455,1769076639146,-500.0,0.00017608,2]
[403022456,1769076639156,-500.0,0.00017608,2]
[403022457,1769076639166,-500.0,0.00017608,2]
[403022458,1769076639175,-300.0,0.00017608,2]
[403022459,1769076639185,-697400.13211256,0.00017609,2]
[403022460,1769076640959,-500.0,0.00017608,2]
[403022461,1769076640970,-500.0,0.00017608,2]
[403022462,1769076640981,-500.0,0.00017608,2]
[403022463,1769076640992,-120.0569502,0.00017608,2]
[403022464,1769076641041,-418.96400889,0.00017608,2]
[403022465,1769076641050,-302599.86788744,0.00017609,2]
[403022466,1769076641060,-166.66,0.00017617,2]
[403022467,1769076641069,-710.62,0.00017621,2]
[403022468,1769076641078,-500.0,0.00017673,2]
[403022469,1769076641087,-500.0,0.00017673,2]
[403022470,1769076641097,-500.0,0.00017673,2]
[403022471,1769076641107,-500.0,0.00017673,2]
[403022472,1769076641116,-500.0,0.00017673,2]
[403022473,1769076641126,-500.0,0.00017673,2]
[403022474,1769076641136,-500.0,0.00017673,2]
[403022475,1769076641145,-502.29619989,0.00017673,2]
[403022476,1769076641155,-500.0,0.00017673,2]
[403022477,1769076641164,-500.0,0.00017673,2]
[403022478,1769076641173,-313.95514595,0.00017673,2]
[403022479,1769076641182,-500.0,0.00017673,2]
[403022480,1769076641192,-501.35548304,0.00017673,2]
[403022481,1769076641201,-500.62373681,0.00017673,2]
[403022482,1769076641211,-500.0,0.00017673,2]
[403022483,1769076641220,-500.0,0.00017673,2]
[403022484,1769076641229,-501.6930998,0.00017673,2]
[403022485,1769076641238,-500.0,0.00017673,2]
[403022486,1769076641247,-500.0,0.00017673,2]
[403022487,1769076641256,-500.0,0.00017673,2]
[403022488,1769076641265,-500.0,0.00017673,2]
[403022489,1769076641274,-545.47745705,0.00017673,2]
[403022490,1769076641283,-500.0,0.00017673,2]
[403022491,1769076641293,-166.03703727,0.00017673,2]
[403022492,1769076641304,-501.64063566,0.00017673,2]
[403022493,1769076641314,-234.53204156,0.00017673,2]
[403022494,1769076641323,-500.0,0.00017673,2]
[403022495,1769076641332,-501.00143477,0.00017673,2]
[403022496,1769076641341,-4047.69764037,0.00017728,2]
[403022497,1769076641380,-5952.29235963,0.00017728,2]
[403022498,1769076641389,-186.86,0.00017729,2]
[403022499,1769076641398,-239.0,0.00017768,2]
[403022500,1769076641408,-239.0,0.00017775,2]
[403022501,1769076641417,-992.08170198,0.000178,6]
[403022502,1769076641428,-107.91829802,0.000178,6]
[403022503,1769076641437,-151.41,0.00017807,2]
[403022504,1769076641446,-906.19,0.00017882,2]
[403022505,1769076641455,-166.66,0.00017893,2]
[403022506,1769076641469,-239.0,0.00017895,2]
[403022507,1769076641479,-632.00014847,0.000179,6]
[403022508,1769076641500,-1516.59381822,0.000179,6]
[403022520,1769076643524,-151.40603331,0.000179,6]
[403022521,1769076643536,-239.0,0.00017917,2]
[403022522,1769076643545,-208.44416793,0.00017939,2]
[403022523,1769076643556,-30.55583207,0.00017939,2]
[403022524,1769076643565,-1338.86381462,0.00017942,2]
[403022525,1769076643590,-408.1630651,0.00017942,2]
[403022531,1769076646337,-792.81312028,0.00017942,2]
[403022532,1769076646350,-160.71,0.00017949,2]
[403022533,1769076646359,-166.66,0.00017973,2]
[403022534,1769076646369,-690.467,0.0001799,2]
[403022535,1769076646379,-250.0,0.00018002,2]
[403022536,1769076646389,-239.0,0.0001804,2]
[403022537,1769076646398,-300.0,0.00018089,2]
[403022538,1769076646409,-250.0,0.00018089,2]
[403022539,1769076646418,-600.0,0.00018089,2]
[403022540,1769076646427,-906.19,0.00018156,2]
[403022541,1769076646437,-339.0146514,0.00018195,2]
[403022542,1769076646446,-239.0,0.00018206,2]
[403022543,1769076646457,-292.86388149,0.00018221,2]
[403022544,1769076646468,-170.62003131,0.00018221,2]
[403022545,1769076646478,-1097.63046091,0.00018221,2]
[403022546,1769076646487,-502.78879497,0.00018221,2]
[403022547,1769076646496,-1001.80734067,0.00018221,2]
[403022548,1769076646506,-1000.0,0.00018221,2]
[403022549,1769076646515,-503.97381982,0.00018221,2]
[403022550,1769076646525,-502.29589006,0.00018221,2]
[403022551,1769076646537,-1000.0,0.00018221,2]
[403022552,1769076646547,-1003.61495246,0.00018221,2]
[403022553,1769076646557,-1004.12488627,0.00018221,2]
[403022555,1769076646566,-1000.0,0.00018221,2]
[403022556,1769076646576,-502.47348302,0.00018221,2]
[403022557,1769076646585,-1000.0,0.00018221,2]
[403022558,1769076646594,-1000.0,0.00018221,2]
[403022559,1769076646603,-1068.24864212,0.00018221,2]
[403022560,1769076646612,-1000.0,0.00018221,2]
[403022561,1769076646621,-502.42566729,0.00018221,2]
[403022562,1769076646631,-151.41,0.00018252,2]
[403022563,1769076646640,-232.51,0.00018254,2]
[403022564,1769076646649,-166.66,0.00018329,2]
[403022565,1769076646660,-1680.0,0.00018336,2]
[403022566,1769076646670,-239.0,0.00018353,2]
[403022567,1769076646679,-1000.0,0.00018411,2]
[403022568,1769076646690,-906.19,0.0001843,2]
[403022569,1769076646699,-166.66,0.00018447,2]
[403022570,1769076646709,-200.0,0.00018458,2]
[403022572,1769076646718,-168.0,0.00018514,2]
[403022573,1769076646727,-239.0,0.00018556,2]
[403022574,1769076646745,-239.0,0.00018592,2]
[403022575,1769076646757,-420.0,0.00018631,2]
[403022576,1769076646766,-2084.02,0.00018646,2]
[403022577,1769076646776,-166.66,0.00018685,2]
[403022578,1769076646785,-151.41,0.00018697,2]
[403022579,1769076646794,-239.0,0.00018703,2]
[403022580,1769076646803,-906.19,0.00018704,2]
[403022581,1769076646813,-239.0,0.00018707,2]
[403022582,1769076646822,-1500.0,0.00018768,2]
[403022583,1769076646832,-508.43292363,0.00018768,2]
[403022584,1769076646841,-1500.0,0.00018768,2]
[403022585,1769076646850,-1500.0,0.00018768,2]
[403022586,1769076646860,-380.72034509,0.00018768,2]
[403022587,1769076646870,-1500.0,0.00018768,2]
[403022588,1769076646879,-239.0,0.00018812,2]
[403022589,1769076646889,-239.0,0.00018819,2]
[403022590,1769076646900,-241.62234706,0.00018842,2]
[403022596,1769076914058,151.238816,0.000155,2]
[403022607,1769077469366,4999.769,0.00016052,2]
[403022608,1769077484579,154.89,0.00013913,2]
[403022610,1769077492638,1572.4505634,0.00016052,2]
[403022611,1769077492664,8427.5494366,0.00016052,2]
[403022612,1769077540008,1572.4505634,0.00016052,2]
[403022613,1769077540028,8177.5494366,0.00016052,2]
[403022635,1769077831785,-1000.0,0.000165,2]
[403022636,1769077831796,-393.34925338,0.00016607,2]
[403022637,1769077831807,-176.58,0.00016715,2]
[403022638,1769077831819,-200.0,0.00016757,2]
[403022639,1769077831830,-1269.92,0.00016828,2]
[403022640,1769077831841,-1400.0,0.000169,6]
[403022641,1769077831852,-1200.0,0.00016917,2]
[403022642,1769077831864,-58.90923678,0.00016917,2]
[403022643,1769077831877,-441.09076322,0.00016917,2]
[403022644,1769077831888,-240.21779219,0.00016918,2]
[403022645,1769077831910,-1417.4865309,0.00016918,2]
[403022646,1769077831922,-4374.70793607,0.00016918,2]
[403022647,1769077831933,-7717.50334993,0.00016918,2]
[403022648,1769077831944,-11544.92345793,0.00016918,2]
[403022649,1769077831956,-15620.6853,0.00016918,2]
[403022650,1769077831966,-16442.75865155,0.00016999,2]
[403022651,1769077831977,-503.99230319,0.00017097,2]
[403022652,1769077831988,-302.48726273,0.00017097,2]
[403022653,1769077831999,-256.5212138,0.00017097,2]
[403022654,1769077832010,-484.28154793,0.00017097,2]
[403022655,1769077832022,-500.0,0.00017097,2]
[403022656,1769077832034,-500.0,0.00017097,2]
[403022657,1769077832045,-500.0,0.00017097,2]
[403022658,1769077832056,-519.97263183,0.00017097,2]
[403022659,1769077832067,-500.0,0.00017097,2]
[403022660,1769077832078,-465.9956354,0.00017097,2]
[403022661,1769077832089,-500.0,0.00017097,2]
[403022662,1769077832100,-500.0,0.00017097,2]
[403022663,1769077832111,-480.03900123,0.00017097,2]
[403022664,1769077832122,-500.0,0.00017097,2]
[403022665,1769077832133,-500.0,0.00017097,2]
[403022666,1769077832144,-500.0,0.00017097,2]
[403022667,1769077832154,-500.0,0.00017097,2]
[403022668,1769077832166,-500.0,0.00017097,2]
[403022669,1769077832177,-500.0,0.00017097,2]
[403022670,1769077832189,-500.0,0.00017097,2]
[403022671,1769077832200,-500.0,0.00017097,2]
[403022672,1769077832211,-500.0,0.00017097,2]
[403022674,1769077832222,-500.0,0.00017097,2]
[403022676,1769077832235,-500.0,0.00017097,2]
[403022678,1769077832246,-500.0,0.00017097,2]
[403022680,1769077832257,-500.0,0.00017097,2]
[403022682,1769077832268,-500.0,0.00017097,2]
[403022684,1769077832280,-500.0,0.00017097,2]
[403022687,1769077832291,-500.0,0.00017097,2]
[403022689,1769077832303,-500.0,0.00017097,2]
[403022691,1769077832314,-500.0,0.00017097,2]
[403022693,1769077832324,-500.0,0.00017097,2]
[403022695,1769077832336,-500.0,0.00017097,2]
[403022697,1769077832347,-500.0,0.00017097,2]
[403022700,1769077832358,-500.0,0.00017097,2]
[403022702,1769077832369,-500.0,0.00017097,2]
[403022704,1769077832380,-500.0,0.00017097,2]
[403022706,1769077832391,-500.0,0.00017097,2]
[403022708,1769077832402,-500.0,0.00017097,2]
[403022711,1769077832412,-500.0,0.00017097,2]
[403022713,1769077832423,-500.0,0.00017097,2]
[403022715,1769077832434,-500.0,0.00017097,2]
[403022716,1769077832445,-500.0,0.00017097,2]
[403022717,1769077832456,-500.0,0.00017097,2]
[403022718,1769077832467,-500.0,0.00017097,2]
[403022719,1769077832477,-500.0,0.00017097,2]
[403022720,1769077832488,-500.0,0.00017097,2]
[403022721,1769077832499,-500.0,0.00017097,2]
[403022722,1769077832509,-500.0,0.00017097,2]
[403022723,1769077832520,-179.56484966,0.00017097,2]
[403022724,1769077832532,-500.0,0.00017097,2]
[403022725,1769077832544,-500.0,0.00017097,2]
[403022726,1769077832554,-500.0,0.00017097,2]
[403022727,1769077832565,-500.0,0.00017097,2]
[403022728,1769077832576,-345.18364842,0.00017097,2]
[403022729,1769077832587,-712.78140709,0.00017098,2]
[403022730,1769077832622,-346.78075065,0.00017098,2]
[403022736,1769077837483,-17401.00640134,0.00017098,2]
[403022737,1769077837496,-587.00690597,0.00017098,2]
[403022738,1769077837540,-1341.69773257,0.00017098,2]
[403022739,1769077837551,-1260.0,0.00017098,2]
[403022740,1769077837562,-887.59089991,0.00017098,2]
[403022741,1769077837572,-496.5,0.00017098,2]
[403022742,1769077837597,-478024.19050247,0.00017098,2]
[403022743,1769077837606,-1000.0,0.00017099,2]
[403022744,1769077837615,-16442.75865149,0.00017102,2]
[403022745,1769077837624,-1110.78417922,0.00017198,5]
[403022746,1769077837634,-792.92,0.00017198,2]
[403022747,1769077837644,-552.373,0.00017198,2]
[403022748,1769077837655,-500.0,0.00017198,2]
[403022749,1769077837664,-368.70990999,0.00017198,2]
[403022750,1769077837674,-16442.75865149,0.00017205,2]
[403022751,1769077837684,-200.0,0.00017361,2]
[403022752,1769077837693,-200.0,0.000174,6]
[403022753,1769077837705,-205.0,0.00017455,2]